bitfinex/quotes_ETHUSD_20250626
["timestamp","ask_amount","ask_price","bid_price","bid_amount"]
[1750909692969,0.3264823,2485.0,2484.9,4.02418714]
[1750909693365,11.751,2485.4,2485.1,4.02384794]
[1750909693547,0.32647964,2485.3,2485.1,4.02384794]
[1750909693736,0.12567964,2485.2,2485.1,4.02384794]
[1750909694780,0.12567964,2485.2,2485.1,4.42692856]
[1750909694940,1.72993009,2485.7,2485.3,4.0235654]
[1750909695142,0.2008,2485.4,2485.3,4.0235654]
[1750909695482,0.32646832,2485.4,2485.3,4.0235654]
[1750909695835,0.2008,2485.4,2485.3,4.0235654]
[1750909696039,0.32646726,2485.4,2485.3,4.0235654]
[1750909699305,0.12566726,2485.4,2485.3,4.0235654]
[1750909699608,0.2008,2485.7,2485.6,4.02317347]
[1750909703792,0.2008,2485.7,2485.5,4.02326919]
[1750909704424,0.2008,2485.7,2485.6,4.02317347]
[1750909705931,0.2008,2485.7,2485.5,4.02329217]
[1750909706342,0.2008,2485.7,2485.6,4.02317347]
[1750909708934,0.8026,2486.3,2485.6,5.00858386]
[1750909709113,0.2008,2486.2,2486.1,4.02226163]
[1750909710798,0.2008,2486.2,2486.1,4.84236163]
[1750909711033,0.2008,2486.6,2486.4,4.02174603]
[1750909711217,0.2008,2486.6,2486.5,4.02171727]
[1750909711626,0.2008,2486.6,2486.4,4.02183419]
[1750909712541,0.2008,2486.6,2486.5,4.02171727]
[1750909712745,2.5285,2486.9,2486.6,4.02140044]
[1750909712946,0.2008,2486.8,2486.7,4.02139381]
[1750909713130,0.2008,2487.1,2486.9,4.02105137]
[1750909713816,10.7605,2487.0,2486.4,4.0217765]
[1750909714008,0.2008,2486.8,2486.4,0.2008]
[1750909714218,0.94619414,2487.0,2486.5,4.02169722]
[1750909714410,0.2008,2486.6,2486.5,4.02169722]
[1750909717435,0.7605,2487.1,2486.6,4.02145363]
[1750909717640,1.98616941,2487.1,2486.4,0.8158]
[1750909717838,0.2008,2487.0,2486.5,0.2008]
[1750909718040,0.2008,2487.0,2486.7,4.02130047]
[1750909718318,0.2008,2487.0,2486.7,4.02139381]
[1750909718526,0.2008,2487.0,2486.6,4.02150758]
[1750909719355,0.2008,2487.0,2486.7,4.02138517]
[1750909720453,0.7605,2487.1,2486.6,4.02153132]
[1750909720657,0.2008,2487.1,2486.8,4.02117656]
[1750909720842,0.2008,2487.1,2486.8,4.02117126]
[1750909721021,0.2008,2487.1,2486.7,4.22208091]
[1750909721228,0.2008,2487.1,2486.8,4.02112397]
[1750909721455,0.2008,2487.1,2486.9,4.02100666]
[1750909721665,0.8149,2487.4,2487.1,4.02064755]
[1750909721828,10.12557778,2487.7,2487.2,4.02058539]
[1750909722153,0.2008,2487.4,2487.3,4.02042375]
[1750909722523,0.2008,2487.4,2487.1,4.02061668]
[1750909722928,0.2008,2487.4,2487.2,4.0205689]
[1750909723458,0.2008,2487.4,2487.2,4.02045548]
[1750909723955,0.761,2487.6,2487.3,4.02042375]
[1750909724156,0.2008,2487.6,2487.4,4.0201595]
[1750909724962,0.2008,2487.6,2487.3,4.02035875]
[1750909725166,0.2008,2487.6,2487.2,4.02051463]
[1750909726657,2.60637,2487.6,2486.8,0.7633]
[1750909726935,0.2008,2487.2,2486.9,4.02097772]
[1750909729290,0.2008,2487.2,2487.0,4.02083211]
[1750909729833,0.7799,2487.6,2487.1,4.02074705]
[1750909730038,0.7799,2487.6,2487.2,4.02058539]
[1750909730039,0.2008,2487.3,2487.2,4.02058539]
[1750909732882,0.2008,2487.3,2487.1,4.02069277]
[1750909733548,0.2008,2487.3,2487.0,4.02081681]
[1750909733777,0.7553,2487.2,2486.9,4.0210291]
[1750909733942,0.9561,2487.2,2486.9,4.0210291]
[1750909735660,0.9561,2487.2,2487.0,4.02090689]
[1750909735992,0.2008,2487.2,2487.1,4.02074705]
[1750909736202,0.9561,2487.4,2487.1,4.02074705]
[1750909736496,0.12557321,2487.6,2487.4,4.02025191]
[1750909736497,0.1255728,2487.5,2487.4,4.02025191]
[1750909736662,2.4993,2487.9,2487.5,4.02009327]
[1750909736860,0.2008,2487.7,2487.5,4.02009327]
[1750909737060,0.12556009,2487.6,2487.5,4.02009327]
[1750909738082,0.2008,2487.7,2487.6,4.01993889]
[1750909738278,0.32635607,2487.7,2487.6,4.01993889]
[1750909738478,0.94150523,2488.0,2487.6,4.82413889]
[1750909738694,0.12554545,2487.9,2487.8,4.01953809]
[1750909738892,0.12554545,2487.9,2487.4,0.8042]
[1750909739194,0.7553,2487.7,2487.1,4.02072831]
[1750909739398,0.2008,2487.5,2487.2,4.0204941]
[1750909740096,0.2008,2487.5,2487.3,4.02038754]
[1750909740268,1.69702069,2488.1,2487.6,4.01984281]
[1750909740593,0.2008,2487.8,2487.4,0.2008]
[1750909740800,0.12555184,2487.7,2487.5,4.0200821]
[1750909740984,0.12555184,2487.6,2487.5,4.0200821]
[1750909741663,0.12555184,2487.6,2487.4,4.22100729]
[1750909741865,0.2008,2487.6,2487.2,1.005]
[1750909742166,0.2008,2487.6,2487.3,4.02032816]
[1750909742366,0.2008,2487.6,2487.4,4.02020595]
[1750909744503,0.2008,2487.6,2487.5,4.0201005]
[1750909744878,0.7553,2487.9,2487.7,4.01971648]
[1750909745105,0.12554603,2487.8,2487.7,4.01971648]
[1750909746007,0.12554493,2487.8,2487.7,4.01971648]
[1750909749013,0.12554493,2487.8,2487.7,4.78981648]
[1750909752383,0.2008,2488.1,2488.0,4.0192926]
[1750909752595,1.26957519,2488.1,2488.0,4.0192926]
[1750909753123,1.26957269,2488.1,2488.0,4.0192926]
[1750909753321,0.32633265,2488.1,2488.0,4.0192926]
[1750909753922,1.26943675,2488.1,2488.0,4.0192926]
[1750909754292,0.32633265,2488.1,2488.0,4.0192926]
[1750909754894,0.12553265,2488.1,2488.0,4.0192926]
[1750909755118,0.2008,2488.2,2488.1,4.01913106]
[1750909755305,0.2008,2488.5,2488.3,4.01866008]
[1750909755509,0.12551699,2488.4,2488.0,1.003]
[1750909755829,0.12551699,2488.3,2488.1,4.01913106]
[1750909756030,0.8186,2488.4,2488.0,0.2008]
[1750909756031,0.12552257,2488.2,2488.0,0.2008]
[1750909756235,1.0194,2488.0,2487.6,10.84460091]
[1750909756534,0.8186,2488.0,2487.5,4.0200415]
[1750909756825,0.2008,2487.6,2487.5,4.0200415]
[1750909757424,0.2008,2487.9,2487.7,4.01974174]
[1750909758897,0.2008,2487.9,2487.6,4.82619804]
[1750909759226,0.2008,2487.9,2487.7,4.01977584]
[1750909759404,0.7519,2488.2,2487.7,4.0197773]
[1750909759609,1.14464365,2488.1,2487.7,4.0197773]
[1750909759805,0.7519,2488.2,2487.6,0.2008]
[1750909760005,0.2008,2487.8,2487.4,10.64419446]
[1750909760731,0.2008,2487.8,2487.5,4.02006041]
[1750909761607,0.2008,2487.8,2487.6,4.01988186]
[1750909762030,0.2008,2487.8,2487.7,4.0197773]
[1750909762629,0.2008,2487.8,2487.6,4.01987788]
[1750909762941,0.2008,2487.8,2487.5,4.02003694]
[1750909763102,0.2008,2487.8,2487.6,4.01991404]
[1750909763734,0.2008,2487.8,2487.4,10.64421951]
[1750909763735,0.2008,2487.8,2487.5,4.02003409]
[1750909764450,0.12554777,2487.7,2487.5,4.02003409]
[1750909764732,0.2008,2487.8,2487.5,4.02003409]
[1750909764933,0.12554853,2487.7,2487.3,0.2008]
[1750909765238,0.12554853,2487.6,2487.3,10.84508404]
[1750909765425,0.12554853,2487.5,2487.4,4.02026193]
[1750909765999,0.12554853,2487.5,2487.3,6.8238]
[1750909766000,0.12554853,2487.5,2487.3,10.64335608]
[1750909766202,0.2008,2487.6,2487.3,4.02035608]
[1750909766415,0.12555935,2487.5,2487.3,10.64335608]
[1750909766622,0.2008,2487.6,2487.3,10.64335608]
[1750909766824,0.12555929,2487.5,2487.4,4.0202469]
[1750909767036,0.2008,2487.6,2487.5,4.0201005]
[1750909767299,0.12555024,2487.6,2487.5,4.0201005]
[1750909767620,0.12554719,2487.6,2487.5,4.0201005]
[1750909767825,0.2008,2487.8,2487.6,4.01992144]
[1750909768031,0.1255486,2487.7,2487.6,4.01992144]
[1750909769551,0.1255486,2487.7,2487.5,4.0199992]
[1750909769853,0.1255486,2487.6,2487.5,4.0199992]
[1750909770924,0.1255486,2487.6,2487.5,4.0199992]
[1750909771318,0.76,2488.0,2487.7,4.0197773]
[1750909771523,0.76,2488.0,2487.7,4.01966776]
[1750909771524,1.27018648,2487.9,2487.7,4.01966776]
[1750909771725,0.12554154,2487.8,2487.7,4.01966776]
[1750909771924,0.12554154,2487.8,2487.6,4.01988454]
[1750909772145,0.12554154,2487.7,2487.6,4.01988454]
[1750909775656,0.12554154,2487.7,2487.5,10.84385707]
[1750909775953,0.12554154,2487.6,2487.5,10.84385707]
[1750909776151,0.12554154,2487.6,2487.5,4.22085707]
[1750909776360,0.2008,2487.9,2487.6,4.01978502]
[1750909776524,0.12554785,2487.8,2487.6,4.01978502]
[1750909776854,0.12554785,2487.7,2487.6,4.01978502]
[1750909777456,0.2008,2487.9,2487.5,10.84289834]
[1750909777457,0.2008,2487.9,2487.7,4.01976343]
[1750909777754,0.12554351,2487.8,2487.7,4.01976343]
[1750909779059,0.12554351,2487.8,2487.6,4.01987512]
[1750909779224,0.12554351,2487.7,2487.6,4.01987512]
[1750909780052,0.12554351,2487.7,2487.5,10.84276972]
[1750909780221,0.12554351,2487.6,2487.5,10.84276972]
[1750909780426,0.2008,2487.9,2487.5,10.84276972]
[1750909780727,0.12554769,2487.8,2487.6,4.01989074]
[1750909781038,0.12554769,2487.7,2487.6,4.01989074]
[1750909781357,0.12554769,2487.7,2487.6,10.64089074]
[1750909781772,0.12554769,2487.7,2487.5,0.2008]
[1750909781981,0.2008,2487.9,2487.5,10.8418792]
[1750909781982,0.12554769,2487.6,2487.5,10.8418792]
[1750909782127,0.2008,2487.9,2487.6,4.01987889]
[1750909782422,0.12554814,2487.8,2487.6,4.01987889]
[1750909782626,0.12554814,2487.7,2487.6,4.01987889]
[1750909783655,0.12554814,2487.7,2487.5,10.84184089]
[1750909783859,0.12554814,2487.6,2487.5,10.84184089]
[1750909784356,0.2008,2487.9,2487.5,10.8418491]
[1750909784578,0.12554809,2487.8,2487.5,10.8418491]
[1750909784745,0.12554809,2487.7,2487.5,10.8418491]
[1750909785078,0.12554809,2487.6,2487.5,10.8418491]
[1750909785226,0.12554821,2487.6,2487.5,10.8418491]
[1750909785425,0.12554821,2487.6,2487.5,0.2008]
[1750909785625,0.756,2487.5,2487.3,6.62]
[1750909785841,0.12554821,2487.4,2487.3,6.62]
[1750909786361,0.12554821,2487.4,2487.2,4.02057676]
[1750909786668,0.12554821,2487.3,2487.2,6.62]
[1750909786844,0.756,2487.5,2487.2,6.62]
[1750909787039,0.12556623,2487.4,2487.2,6.62]
[1750909787342,0.12556623,2487.3,2487.2,6.62]
[1750909788464,0.12556623,2487.3,2487.2,10.64058539]
[1750909789043,0.12556621,2487.3,2486.9,0.8148]
[1750909789363,0.12556621,2487.2,2487.0,6.62]
[1750909789529,0.2008,2487.2,2487.0,6.62]
[1750909789964,0.12558054,2487.1,2486.8,4.02117283]
[1750909790144,0.2008,2487.2,2486.8,10.64117283]
[1750909790462,0.12558277,2487.1,2486.8,10.64117283]
[1750909790635,0.2008,2487.2,2486.8,4.02117283]
[1750909790835,0.12558227,2487.1,2486.8,10.64117283]
[1750909791164,0.2008,2487.2,2486.8,10.64117283]
[1750909791368,0.12558206,2487.1,2486.9,4.02106886]
[1750909791546,0.2008,2487.2,2487.0,4.0207967]
[1750909793864,0.2008,2487.2,2486.9,4.0210091]
[1750909794363,0.2008,2487.2,2486.8,6.62]
[1750909794364,0.2008,2487.2,2487.0,4.02086204]
[1750909797281,0.2008,2487.2,2487.1,4.02074705]
[1750909797577,0.2008,2487.4,2487.3,4.02036892]
[1750909797760,0.32636703,2487.4,2487.3,4.02036892]
[1750909799251,2.4955,2487.9,2487.3,4.02036892]
[1750909799455,0.2008,2487.6,2487.4,4.02012627]
[1750909799655,0.2008,2487.6,2487.4,10.63912627]
[1750909800567,0.12556045,2487.5,2487.4,6.619]
[1750909800769,0.87986062,2487.5,2487.1,6.618]
[1750909801086,0.32636062,2487.4,2487.1,6.618]
[1750909801376,0.2008,2487.4,2487.1,6.618]
[1750909801785,0.12557522,2487.3,2486.7,6.57327387]
[1750909801949,0.2008,2487.1,2486.9,10.63895531]
[1750909803162,0.93895785,2487.5,2486.9,10.63895531]
[1750909803362,0.32637225,2487.4,2487.1,4.02072304]
[1750909803575,0.12557225,2487.3,2487.1,4.02072304]
[1750909803779,2.5403,2487.6,2486.9,10.63895405]
[1750909803780,0.12557441,2487.2,2486.9,10.63895405]
[1750909803947,0.9979,2487.2,2486.9,10.63895405]
[1750909804147,0.9979,2487.2,2486.8,4.22190402]
[1750909804455,0.2008,2487.0,2486.9,6.618]
[1750909804975,0.2008,2487.0,2486.8,10.63910402]
[1750909805343,0.2008,2487.0,2486.9,4.0210704]
[1750909805978,0.2008,2487.0,2486.8,10.63817106]
[1750909806872,0.2008,2487.0,2486.8,4.02117106]
[1750909807077,0.2008,2487.0,2486.8,10.63817106]
[1750909807579,0.2008,2487.0,2486.9,4.0210704]
[1750909808086,0.2008,2487.0,2486.8,6.617]
[1750909808087,0.2008,2487.0,2486.8,10.63811138]
[1750909810080,0.2008,2487.0,2486.9,4.0210704]
[1750909810577,0.32638182,2487.0,2486.6,4.22226541]
[1750909810786,0.32638182,2486.9,2486.8,6.617]
[1750909810943,0.32638182,2486.9,2486.5,4.77967563]
[1750909811146,0.12558182,2486.8,2486.6,6.617]
[1750909811374,0.2008,2486.9,2486.6,6.617]
[1750909811577,0.12559523,2486.8,2486.6,6.617]
[1750909811780,0.2008,2486.9,2486.7,4.02136736]
[1750909811955,0.12559499,2486.8,2486.7,4.02136736]
[1750909812158,0.2008,2486.9,2486.7,4.02136736]
[1750909812360,0.12559375,2486.8,2486.7,4.02136736]
[1750909812560,0.12559375,2486.8,2486.6,6.617]
[1750909812561,0.12559375,2486.8,2486.6,10.63843977]
[1750909812784,0.2008,2486.9,2486.7,4.02138968]
[1750909813080,0.12559413,2486.8,2486.7,4.02138968]
[1750909813469,0.12559413,2486.8,2486.6,10.63748732]
[1750909813668,0.2008,2486.9,2486.6,10.63748732]
[1750909813987,1.735,2487.1,2486.3,2.40011483]
[1750909813988,0.91789609,2486.8,2486.3,5.65883105]
[1750909814191,0.2008,2486.6,2486.3,1.63691483]
[1750909814376,0.2008,2486.4,2486.3,8.25291483]
[1750909814686,0.32639609,2486.4,2486.3,8.25291483]
[1750909815075,0.32639609,2486.4,2486.3,6.616]
[1750909815286,10.7923,2486.8,2486.5,4.02164431]
[1750909815597,0.2008,2486.6,2486.5,4.02171727]
[1750909817717,10.9384728,2487.0,2486.6,4.02145503]
[1750909817893,1.26487545,2486.9,2486.6,4.02145503]
[1750909818195,0.12560265,2486.8,2486.6,4.02145503]
[1750909818367,0.2008,2486.9,2486.7,4.02139381]
[1750909818567,0.12560254,2486.8,2486.7,4.02139381]
[1750909819690,0.2008,2486.9,2486.8,4.0212321]
[1750909819890,0.2008,2487.1,2487.0,4.02078087]
[1750909820197,0.32638514,2487.1,2487.0,4.02078087]
[1750909821593,0.2008,2487.1,2487.0,4.02078087]
[1750909821794,0.32638513,2487.1,2487.0,4.02078087]
[1750909822096,0.2008,2487.1,2487.0,4.02078087]
[1750909822392,0.32638318,2487.1,2487.0,4.02078087]
[1750909823695,0.32638387,2487.1,2487.0,4.02078087]
[1750909823893,0.32638387,2487.1,2486.9,6.615]
[1750909824097,0.12558387,2487.0,2486.9,10.63606501]
[1750909825471,0.12558387,2487.0,2486.9,4.02106501]
[1750909825678,0.12558387,2487.0,2486.9,10.63506501]
[1750909827198,0.12558387,2487.0,2486.7,0.9846]
[1750909827400,0.12558387,2486.9,2486.7,6.614]
[1750909827574,0.2008,2486.9,2486.8,4.0212321]
[1750909827775,0.32639267,2486.9,2486.7,10.63536223]
[1750909828102,0.2008,2486.9,2486.7,10.63536223]
[1750909829002,0.2008,2486.9,2486.7,6.614]
[1750909829206,0.2008,2486.9,2486.4,0.9792]
[1750909829392,0.2008,2486.6,2486.2,4.02216536]
[1750909829576,0.2008,2486.4,2486.1,10.63531483]
[1750909829903,0.9909,2486.4,2485.9,4.22341785]
[1750909830078,0.9909,2486.4,2486.0,6.613]
[1750909830079,0.2008,2486.1,2486.0,6.613]
[1750909830406,0.7901,2486.0,2485.7,0.2008]
[1750909830705,0.7901,2486.0,2485.4,0.7784]
[1750909830706,0.2008,2485.8,2485.5,6.613]
[1750909830905,0.12565441,2485.7,2485.3,4.22435514]
[1750909831071,0.2008,2485.6,2485.4,6.613]
[1750909831505,0.2008,2485.6,2485.0,0.7784]
[1750909831506,0.12566356,2485.5,2485.0,0.7784]
[1750909831673,0.2008,2485.4,2485.0,4.80244696]
[1750909831868,0.2008,2485.4,2484.9,0.2008]
[1750909832099,0.1256819,2485.3,2485.0,6.613]
[1750909832403,0.1256819,2485.3,2484.9,4.02424581]
[1750909832404,0.7988,2485.1,2484.8,6.8138]
[1750909832729,0.7988,2485.1,2484.6,10.63779223]
[1750909832880,0.2008,2484.9,2484.6,10.63779223]
[1750909833600,0.2008,2484.9,2484.6,10.63776131]
[1750909834103,0.2008,2484.9,2484.7,4.02459589]
[1750909834405,0.2008,2484.9,2484.8,4.02446877]
[1750909835008,0.2008,2484.9,2484.7,4.02458027]
[1750909836515,0.2008,2484.9,2484.6,6.614]
[1750909837285,0.2008,2484.9,2484.6,10.63876756]
[1750909837583,0.2008,2484.9,2484.8,4.02446877]
[1750909838618,0.2008,2484.9,2484.8,4.80176877]
[1750909838819,11.732,2485.3,2485.1,4.02385609]
[1750909839018,11.732,2485.3,2485.2,4.02382102]
[1750909839189,0.2008,2485.2,2484.9,4.02420108]
[1750909839523,0.2008,2485.0,2484.8,4.02435673]
[1750909839950,0.2008,2485.0,2484.7,4.02456897]
[1750909840260,0.2008,2484.8,2484.6,4.0247876]
[1750909840385,0.2008,2484.8,2484.6,4.02479272]
[1750909841335,0.8186,2484.7,2484.4,4.02495542]
[1750909841536,0.2008,2484.6,2484.5,4.0249461]
[1750909842195,0.2008,2484.6,2484.5,4.02495471]
[1750909843371,0.2008,2484.6,2484.0,0.8248]
[1750909843656,0.2008,2484.4,2484.2,4.02544028]
[1750909843826,0.2008,2484.4,2484.1,6.615]
[1750909843827,0.2008,2484.4,2484.1,10.64055833]
[1750909844263,0.27514,2484.6,2484.1,4.02555833]
[1750909844462,0.27514,2484.6,2483.4,10.0]
[1750909844463,0.2008,2484.2,2483.8,1.0256]
[1750909844765,0.2008,2484.0,2483.6,4.22715481]
[1750909844932,0.2008,2484.0,2483.5,4.02653171]
[1750909845131,0.2008,2483.7,2483.3,1.0256]
[1750909845460,0.2008,2483.6,2483.3,10.64178565]
[1750909845667,0.2008,2483.6,2483.3,10.6417993]
[1750909845831,0.2008,2483.6,2483.3,4.0267993]
[1750909846161,0.2008,2483.6,2483.1,4.22800917]
[1750909846162,0.2008,2483.6,2483.2,10.64200765]
[1750909847139,0.2008,2483.6,2483.1,4.22800971]
[1750909847333,0.2008,2483.6,2483.3,4.02687394]
[1750909847533,0.2008,2483.6,2483.5,4.02657539]
[1750909847756,0.2008,2483.6,2483.4,4.02669701]
[1750909848068,0.2008,2483.6,2483.5,4.02657539]
[1750909848966,0.2008,2483.6,2483.4,4.02668638]
[1750909849166,0.2008,2483.6,2483.5,4.80377539]
[1750909849371,16.91071281,2484.6,2483.9,4.02582463]
[1750909849372,2.5333,2484.3,2483.9,4.02582463]
[1750909849527,10.0,2484.2,2483.9,4.02582463]
[1750909849879,2.5333,2484.3,2484.1,4.02546173]
[1750909850040,2.5333,2484.3,2483.5,7.3942]
[1750909850041,1.733,2484.3,2483.5,7.3942]
[1750909850233,1.733,2484.3,2484.2,4.02544078]
[1750909851964,1.733,2484.3,2484.1,4.02550468]
[1750909852349,1.733,2484.3,2484.2,4.02544078]
[1750909854264,1.733,2484.3,2483.7,6.616]
[1750909854570,1.733,2484.3,2483.8,4.02593205]
[1750909854866,1.733,2484.3,2483.9,4.02581439]
[1750909855162,3.68458728,2484.3,2483.9,4.02581439]
[1750909855367,1.95158728,2484.3,2483.6,6.616]
[1750909855548,0.8003,2484.5,2484.0,4.02563849]
[1750909855730,0.8003,2484.5,2484.1,4.02557024]
[1750909855936,0.8003,2484.5,2483.9,4.02580186]
[1750909855937,0.7972,2484.7,2484.0,4.02576489]
[1750909856236,0.7972,2484.7,2484.4,4.02511411]
[1750909856773,7.53257281,2484.6,2483.9,0.7745]
[1750909856943,10.0,2484.5,2484.0,4.02567129]
[1750909857769,0.7651,2484.4,2483.9,4.02585755]
[1750909858266,0.7651,2484.4,2484.0,4.02574509]
[1750909858869,0.7651,2484.4,2483.7,4.84602483]
[1750909859082,0.7651,2484.4,2484.2,4.0253983]
[1750909859271,0.7651,2484.4,2483.9,4.02588408]
[1750909859454,0.2008,2484.1,2484.0,4.02570723]
[1750909860173,0.7612,2484.6,2484.3,4.02527875]
[1750909860372,0.93544411,2484.5,2484.4,4.02510735]
[1750909860566,1.13624411,2484.5,2484.4,4.02510735]
[1750909860761,0.8294,2484.4,2484.2,4.02538712]
[1750909861064,0.2008,2484.3,2484.2,4.02538712]
[1750909862978,10.0,2484.7,2484.1,4.02560156]
[1750909862979,10.0,2484.7,2484.6,4.02479272]
[1750909863178,11.13635774,2484.7,2484.6,4.02479272]
[1750909863569,0.93555774,2484.7,2484.6,4.02479272]
[1750909863768,0.8132,2485.2,2484.8,4.0243765]
[1750909863971,0.8132,2485.2,2484.6,4.02468632]
[1750909863972,0.8132,2485.0,2484.6,4.02468632]
[1750909864271,0.93584527,2484.9,2484.6,4.02468632]
[1750909864450,0.93584527,2484.8,2484.6,4.02468632]
[1750909864781,0.93584527,2484.7,2484.6,4.02468632]
[1750909865146,0.2008,2484.6,2484.5,4.0248508]
[1750909865850,0.8144,2484.5,2484.2,4.02529301]
[1750909866051,0.2008,2484.4,2484.1,4.02556121]
[1750909866246,0.2008,2484.4,2484.2,4.02544078]
[1750909866452,0.2008,2484.4,2484.1,4.02554292]
[1750909867286,0.2008,2484.2,2484.1,4.02554292]
[1750909868657,0.2008,2484.2,2483.9,10.64090347]
[1750909868978,0.2008,2484.2,2483.9,4.02591488]
[1750909869185,0.2008,2484.2,2484.0,4.02566649]
[1750909869481,0.2008,2484.2,2483.8,0.2008]
[1750909869787,0.938839,2484.1,2483.9,4.02585733]
[1750909870079,0.8322,2484.3,2483.7,10.64021985]
[1750909870080,0.2008,2483.9,2483.7,4.02618249]
[1750909870380,0.2008,2483.9,2483.6,4.02636784]
[1750909870381,0.93920063,2483.8,2483.6,4.02639435]
[1750909870582,0.2008,2483.9,2483.8,4.02608905]
[1750909870774,1.14006189,2483.9,2483.8,4.02608905]
[1750909871753,0.93926189,2483.9,2483.8,4.02608905]
[1750909872083,12.36153603,2484.5,2483.8,4.22688905]
[1750909872284,0.2008,2484.3,2484.2,4.02544078]
[1750909872577,1.1403603,2484.3,2484.2,4.02544078]
[1750909873385,0.9395603,2484.3,2484.2,4.80804078]
[1750909873582,2.34725405,2484.9,2484.2,4.80804078]
[1750909873583,1.56483603,2484.8,2484.5,4.02495471]
[1750909873798,1.56483603,2484.8,2484.2,0.7826]
[1750909873799,1.14010377,2484.7,2484.6,4.02479272]
[1750909874281,1.731,2485.0,2484.6,4.02479272]
[1750909874484,1.13985816,2484.9,2484.7,4.02460707]
[1750909874784,0.93905816,2484.8,2484.7,4.02460707]
[1750909875853,0.93905816,2484.8,2484.6,4.02474571]
[1750909876189,0.2008,2484.9,2484.5,10.6388872]
[1750909876485,0.940197,2484.8,2484.5,4.02494524]
[1750909876691,1.140997,2484.7,2484.5,4.02494524]
[1750909876996,0.2008,2484.7,2484.5,4.02494524]
[1750909878691,0.2008,2484.7,2484.3,6.613]
[1750909879090,0.2008,2484.7,2484.3,10.63827875]
[1750909879588,0.2008,2484.7,2484.3,10.6382203]
[1750909879963,0.2008,2484.7,2484.4,4.0250786]
[1750909880293,0.2008,2484.7,2484.4,4.02495957]
[1750909880668,0.2008,2484.7,2484.5,4.02484321]
[1750909881196,2.5007,2485.1,2484.6,4.02479272]
[1750909881389,0.2008,2484.8,2484.6,4.02472476]
[1750909881792,0.2008,2484.8,2484.7,4.02463074]
[1750909881995,1.14254321,2484.8,2484.7,4.02463074]
[1750909882199,0.2008,2484.8,2484.7,4.02463074]
[1750909882667,10.0,2485.0,2484.8,4.02445016]
[1750909882869,0.94166316,2484.9,2484.8,4.02445016]
[1750909883401,10.2008,2485.0,2484.8,4.02445016]
[1750909883987,0.2008,2485.0,2484.9,4.02430681]
[1750909884394,1.73,2485.1,2485.0,4.02414486]
[1750909884582,1.73,2485.1,2484.8,4.02446024]
[1750909884583,0.2008,2485.1,2484.9,4.02424051]
[1750909885284,0.2008,2485.1,2485.0,4.02414486]
[1750909885601,0.2008,2485.1,2484.8,10.63645232]
[1750909885602,0.2008,2485.1,2484.8,4.02445232]
[1750909885982,0.2008,2485.1,2484.7,5.00109144]
[1750909886182,0.2008,2485.1,2484.8,4.02441726]
[1750909886382,0.2008,2485.1,2484.8,4.02444553]
[1750909886585,0.2008,2485.1,2484.8,4.02444679]
[1750909887185,0.2008,2485.1,2484.9,4.02426808]
[1750909887575,0.2008,2485.1,2485.0,4.02414486]
[1750909888088,0.2008,2485.1,2484.9,4.02426119]
[1750909888410,0.2008,2485.1,2484.8,4.02444801]
[1750909889206,0.2008,2485.1,2484.9,4.02423934]
[1750909889405,0.2008,2485.1,2485.0,4.02414486]
[1750909889709,0.2008,2485.1,2484.9,4.02423632]
[1750909889895,0.2008,2485.1,2484.7,7.5885]
[1750909890097,0.2008,2485.1,2484.8,6.611]
[1750909890975,0.2008,2485.1,2484.7,4.22539237]
[1750909891475,0.2008,2485.1,2484.7,0.2008]
[1750909891678,0.7532,2485.0,2484.6,4.02478966]
[1750909892003,0.2008,2484.8,2484.6,10.63578966]
[1750909893331,0.2008,2484.8,2484.7,4.02463074]
[1750909893533,0.2008,2484.8,2484.6,10.63476043]
[1750909894027,0.2008,2484.8,2484.7,4.02463074]
[1750909895000,0.2008,2484.8,2484.6,10.63474286]
[1750909895526,0.2008,2484.8,2484.4,4.22587716]
[1750909895527,0.2008,2484.8,2484.5,4.02492384]
[1750909895933,0.2008,2484.8,2484.6,6.61]
[1750909896298,0.2008,2484.8,2484.4,4.22589135]
[1750909896504,0.2008,2484.8,2484.5,6.61]
[1750909896900,0.2008,2484.8,2484.5,4.02494656]
[1750909897412,0.2008,2484.7,2484.4,10.63505777]
[1750909897603,0.2008,2484.7,2484.4,4.02505777]
[1750909897801,0.2008,2484.7,2484.5,6.61]
[1750909898030,0.2008,2484.7,2484.4,4.02505777]
[1750909898530,0.2008,2484.7,2484.2,0.2008]
[1750909898702,0.2008,2484.5,2484.2,4.02540359]
[1750909899146,1.77344438,2484.8,2484.1,4.02560073]
[1750909899147,10.94064438,2484.8,2484.1,4.02560073]
[1750909899316,0.2008,2484.4,2484.1,4.02560073]
[1750909900424,0.2008,2484.4,2484.2,4.02543456]
[1750909900631,0.2008,2484.4,2484.1,4.02554618]
[1750909901342,0.2008,2484.4,2484.3,4.02527875]
[1750909901712,0.2008,2484.4,2484.2,4.02537258]
[1750909902540,0.2008,2484.4,2484.3,4.02527875]
[1750909903912,10.94269011,2485.0,2484.8,4.02444835]
[1750909904131,10.0,2485.0,2484.8,4.02444835]
[1750909904646,0.2008,2485.0,2484.9,4.02430681]
[1750909905846,1.14430808,2485.0,2484.6,10.63372832]
[1750909906026,0.2008,2485.0,2484.7,4.02462693]
[1750909906223,0.2008,2485.0,2484.9,4.02430681]
[1750909906618,0.2008,2485.0,2484.9,4.85760681]
[1750909907142,0.2008,2485.0,2484.9,4.02430681]
[1750909907948,0.2008,2485.0,2484.8,4.02441668]
[1750909908150,0.2008,2485.0,2484.7,0.8333]
[1750909908342,0.2008,2485.0,2484.8,6.609]
[1750909908850,0.2008,2485.0,2484.8,10.63343716]
[1750909909158,0.2008,2485.0,2484.9,4.02430681]
[1750909909658,0.2008,2485.0,2484.8,4.02441597]
[1750909909861,0.2008,2485.0,2484.7,10.63361077]
[1750909910046,0.2008,2485.0,2484.8,4.02443437]
[1750909910229,0.2008,2485.0,2484.7,6.609]
[1750909910230,0.2008,2485.0,2484.9,4.02430681]
[1750909910855,0.2008,2485.0,2484.8,4.02441206]
[1750909911561,0.2008,2485.0,2484.9,4.02430681]
[1750909911958,0.8111,2485.7,2484.9,0.8201]
[1750909912165,0.94344121,2485.6,2485.0,10.63201308]
[1750909912360,0.94344121,2485.5,2485.0,10.63205194]
[1750909912553,0.94344121,2485.4,2485.0,10.63205194]
[1750909912737,0.55,2485.6,2485.0,10.63205194]